[Event "*** Titled Tuesday Blitz"]
[Site "Chess.com"]
[Date "2019.07.02"]
[Round "3"]
[White "BakaPG"]
[Black "resha1988"]
[Result "1/2-1/2"]
[WhiteElo "2725"]
[BlackElo "2748"]
[TimeControl "180+2"]
[EndTime "13:40:01 PDT"]
[Termination "Game drawn by agreement"]

1. e4 {[%clk 0:03:01.8]} 1... c5 {[%clk 0:03:00.2]} 2. Nf3 {[%clk 0:03:01.4]}
2... Nc6 {[%clk 0:03:01.6]} 3. Nc3 {[%clk 0:03:01.5]} 3... e6 {[%clk 0:03:01.9]}
4. d4 {[%clk 0:03:00.2]} 4... cxd4 {[%clk 0:03:03.8]} 5. Nxd4 {[%clk 0:03:01.6]}
5... Qc7 {[%clk 0:03:05.3]} 6. Be2 {[%clk 0:03:01.5]} 6... a6 {[%clk 0:03:06.1]}
7. O-O {[%clk 0:03:02.5]} 7... Nf6 {[%clk 0:03:07.5]} 8. Kh1 {[%clk 0:03:03.1]}
8... d6 {[%clk 0:02:35.1]} 9. f4 {[%clk 0:03:01.2]} 9... Be7 {[%clk 0:02:34.3]}
10. Be3 {[%clk 0:03:02.1]} 10... Bd7 {[%clk 0:02:30.9]} 11. Qe1 {[%clk
0:03:02.4]} 11... O-O {[%clk 0:02:27.1]} 12. Qg3 {[%clk 0:03:02]} 12... Nxd4
{[%clk 0:02:24.3]} 13. Bxd4 {[%clk 0:03:02.6]} 13... Bc6 {[%clk 0:02:25.3]} 14.
Rae1 {[%clk 0:02:58.9]} 14... b5 {[%clk 0:02:17.3]} 15. a3 {[%clk 0:02:59.1]}
15... Qb7 {[%clk 0:02:14.5]} 16. Bd3 {[%clk 0:02:59.9]} 16... a5 {[%clk
0:02:00.1]} 17. Nd1 {[%clk 0:02:58.9]} 17... b4 {[%clk 0:01:19.7]} 18. axb4
{[%clk 0:02:58.1]} 18... axb4 {[%clk 0:01:21.6]} 19. Nf2 {[%clk 0:02:57]} 19...
Nh5 {[%clk 0:01:06.3]} 20. Qf3 {[%clk 0:02:55.4]} 20... Nf6 {[%clk 0:01:03.1]}
21. Ng4 {[%clk 0:02:51.9]} 21... Nxg4 {[%clk 0:00:58.1]} 22. Qxg4 {[%clk
0:02:52.1]} 22... g6 {[%clk 0:00:57.5]} 23. f5 {[%clk 0:02:48.4]} 23... e5
{[%clk 0:00:33.9]} 24. Be3 {[%clk 0:02:48.5]} 24... Rfd8 {[%clk 0:00:31.5]} 25.
f6 {[%clk 0:02:41.8]} 25... Bf8 {[%clk 0:00:28.6]} 26. Qh4 {[%clk 0:02:40.8]}
26... d5 {[%clk 0:00:19]} 27. Bh6 {[%clk 0:02:40.1]} 27... Bc5 {[%clk
0:00:19.8]} 28. exd5 {[%clk 0:02:25.4]} 28... Bxd5 {[%clk 0:00:21.7]} 29. Qg5
{[%clk 0:02:15.1]} 29... Re8 {[%clk 0:00:22.4]} 30. Bg7 {[%clk 0:02:09.6]} 30...
e4 {[%clk 0:00:22]} 31. Be2 {[%clk 0:02:08.1]} 31... Bd6 {[%clk 0:00:21.8]} 32.
Rd1 {[%clk 0:02:05.3]} 32... Re5 {[%clk 0:00:22.2]} 33. Qg4 {[%clk 0:01:59.7]}
33... e3 {[%clk 0:00:20.5]} 34. Rfe1 {[%clk 0:01:49.5]} 34... Rae8 {[%clk
0:00:20.4]} 35. c4 {[%clk 0:01:45.6]} 35... Be6 {[%clk 0:00:13.4]} 36. Qf3
{[%clk 0:01:46.1]} 36... Qxf3 {[%clk 0:00:12.6]} 37. Bxf3 {[%clk 0:01:47]} 37...
Bc5 {[%clk 0:00:13.6]} 38. b3 {[%clk 0:01:48.1]} 38... Bf5 {[%clk 0:00:06]} 39.
Rc1 {[%clk 0:01:36.5]} 39... h5 {[%clk 0:00:04.6]} 40. Bh6 {[%clk 0:01:36.2]}
40... e2 {[%clk 0:00:04.9]} 41. Bf4 {[%clk 0:01:34.4]} 41... Bf2 {[%clk
0:00:05.3]} 42. Bxe5 {[%clk 0:01:34.5]} 42... Bxe1 {[%clk 0:00:06.5]} 43. Rxe1
{[%clk 0:01:34.4]} 43... Rxe5 {[%clk 0:00:07]} 44. Rxe2 {[%clk 0:01:33.5]} 44...
Rxe2 {[%clk 0:00:06.3]} 45. Bxe2 {[%clk 0:01:34.6]} 45... Bc2 {[%clk 0:00:07.8]}
46. c5 {[%clk 0:01:35.9]} 46... Bxb3 {[%clk 0:00:09.1]} 47. c6 {[%clk
0:01:36.9]} 47... Be6 {[%clk 0:00:09.9]} 48. c7 {[%clk 0:01:34.9]} 48... b3
{[%clk 0:00:10.9]} 49. Kg1 {[%clk 0:01:33.9]} 49... b2 {[%clk 0:00:11.7]} 50.
Bd3 {[%clk 0:01:35]} 50... Kf8 {[%clk 0:00:12.9]} 51. Kf2 {[%clk 0:01:35.8]}
51... Ke8 {[%clk 0:00:14.2]} 52. Bb5+ {[%clk 0:01:34.3]} 52... Kf8 {[%clk
0:00:15.4]} 53. Bd3 {[%clk 0:01:34.3]} 53... Ke8 {[%clk 0:00:16.7]} 54. Bb5+
{[%clk 0:01:22.9]} 54... Kf8 {[%clk 0:00:17.4]} 1/2-1/2

[Event "*** Titled Tuesday Blitz"]
[Site "Chess.com"]
[Date "2019.07.02"]
[Round "3"]
[White "TonRicher"]
[Black "Margency"]
[Result "0-1"]
[WhiteElo "2412"]
[BlackElo "2635"]
[TimeControl "180+2"]
[EndTime "13:40:01 PDT"]
[Termination "Margency won by resignation"]

1. d4 {[%clk 0:02:58.6]} 1... Nf6 {[%clk 0:03:00.6]} 2. c4 {[%clk 0:02:59.4]}
2... g6 {[%clk 0:03:01.8]} 3. Nc3 {[%clk 0:03:00.1]} 3... Bg7 {[%clk 0:03:02]}
4. e4 {[%clk 0:03:00.9]} 4... d6 {[%clk 0:03:02.4]} 5. Nf3 {[%clk 0:03:02.2]}
5... O-O {[%clk 0:03:03.1]} 6. Be2 {[%clk 0:03:03.8]} 6... e5 {[%clk 0:03:03.7]}
7. d5 {[%clk 0:03:05.2]} 7... a5 {[%clk 0:03:04.4]} 8. Bg5 {[%clk 0:03:05.8]}
8... Na6 {[%clk 0:03:04.7]} 9. Nd2 {[%clk 0:03:06.6]} 9... Qe8 {[%clk
0:02:57.9]} 10. h4 {[%clk 0:02:49]} 10... Nd7 {[%clk 0:02:35.4]} 11. h5 {[%clk
0:02:40.5]} 11... f6 {[%clk 0:02:36.1]} 12. Be3 {[%clk 0:02:40.4]} 12... f5
{[%clk 0:02:35.3]} 13. exf5 {[%clk 0:01:35.6]} 13... gxf5 {[%clk 0:02:34.2]} 14.
f3 {[%clk 0:01:32.2]} 14... Ndc5 {[%clk 0:02:16]} 15. a3 {[%clk 0:01:26.5]}
15... a4 {[%clk 0:01:55.1]} 16. Qc2 {[%clk 0:01:19.7]} 16... Bd7 {[%clk
0:01:50.7]} 17. O-O-O {[%clk 0:01:16.6]} 17... Qe7 {[%clk 0:01:30.9]} 18. g4
{[%clk 0:01:12.1]} 18... e4 {[%clk 0:01:23.2]} 19. f4 {[%clk 0:00:57.6]} 19...
Nd3+ {[%clk 0:01:16.4]} 20. Bxd3 {[%clk 0:00:47.1]} 20... exd3 {[%clk
0:01:17.1]} 21. Qxd3 {[%clk 0:00:49]} 21... fxg4 {[%clk 0:01:18.6]} 22. Bd4
{[%clk 0:00:31.5]} 22... Nc5 {[%clk 0:01:11.2]} 23. Bxc5 {[%clk 0:00:29.6]}
23... dxc5 {[%clk 0:01:11.5]} 24. Rde1 {[%clk 0:00:30.4]} 24... Qf7 {[%clk
0:01:07.5]} 25. h6 {[%clk 0:00:30.3]} 25... Bd4 {[%clk 0:01:04.1]} 26. Nce4
{[%clk 0:00:27.1]} 26... Qxf4 {[%clk 0:00:48.5]} 27. Rhf1 {[%clk 0:00:21.3]}
27... Qxh6 {[%clk 0:00:47.6]} 28. Rh1 {[%clk 0:00:20.6]} 28... Qg7 {[%clk
0:00:43.5]} 29. Qc2 {[%clk 0:00:16.5]} 29... Bf5 {[%clk 0:00:41.3]} 30. Rh5
{[%clk 0:00:11.6]} 30... Rae8 {[%clk 0:00:32.3]} 31. Reh1 {[%clk 0:00:10.6]}
31... Bg6 {[%clk 0:00:20.5]} 32. Rg5 {[%clk 0:00:11.4]} 32... Rf4 {[%clk
0:00:22]} 33. Qxa4 {[%clk 0:00:06]} 33... Rfxe4 {[%clk 0:00:21.6]} 34. Nxe4
{[%clk 0:00:06.5]} 34... Rxe4 {[%clk 0:00:22.3]} 35. Qa8+ {[%clk 0:00:07]} 35...
Re8 {[%clk 0:00:22.9]} 36. Qxb7 {[%clk 0:00:07.6]} 36... Be3+ {[%clk 0:00:23.8]}
37. Kd1 {[%clk 0:00:07.9]} 37... Qd4+ {[%clk 0:00:24.3]} 38. Ke1 {[%clk
0:00:07.9]} 38... Qd2+ {[%clk 0:00:25.4]} 0-1

[Event "*** Titled Tuesday Blitz"]
[Site "Chess.com"]
[Date "2019.07.02"]
[Round "3"]
[White "Vamostodorecto"]
[Black "PabloZarnicki"]
[Result "1-0"]
[WhiteElo "2423"]
[BlackElo "2598"]
[TimeControl "180+2"]
[EndTime "13:40:04 PDT"]
[Termination "Vamostodorecto won by resignation"]

1. d4 {[%clk 0:03:01.9]} 1... Nf6 {[%clk 0:02:59.7]} 2. c4 {[%clk 0:03:01.8]}
2... e6 {[%clk 0:03:01.2]} 3. Nc3 {[%clk 0:03:02]} 3... Bb4 {[%clk 0:03:02.3]}
4. e3 {[%clk 0:03:03.3]} 4... c5 {[%clk 0:03:03]} 5. Bd3 {[%clk 0:03:03]} 5...
Nc6 {[%clk 0:03:03.4]} 6. Nf3 {[%clk 0:03:04.1]} 6... Bxc3+ {[%clk 0:03:03.4]}
7. bxc3 {[%clk 0:03:04.5]} 7... d6 {[%clk 0:03:05.3]} 8. O-O {[%clk 0:03:05.2]}
8... e5 {[%clk 0:03:06.9]} 9. d5 {[%clk 0:02:57]} 9... Ne7 {[%clk 0:03:05.4]}
10. e4 {[%clk 0:02:58.6]} 10... O-O {[%clk 0:03:06]} 11. Nh4 {[%clk 0:02:56.9]}
11... h6 {[%clk 0:03:04.8]} 12. f4 {[%clk 0:02:47.3]} 12... exf4 {[%clk
0:03:05.6]} 13. Bxf4 {[%clk 0:02:49.2]} 13... Ng6 {[%clk 0:03:06.8]} 14. Nxg6
{[%clk 0:02:47.5]} 14... fxg6 {[%clk 0:03:07.8]} 15. e5 {[%clk 0:02:49]} 15...
Nh5 {[%clk 0:03:03.6]} 16. Qd2 {[%clk 0:02:03.2]} 16... Bf5 {[%clk 0:02:50.4]}
17. Bxf5 {[%clk 0:01:50.4]} 17... Rxf5 {[%clk 0:02:50.8]} 18. e6 {[%clk
0:01:47.1]} 18... Nxf4 {[%clk 0:02:42.9]} 19. Rxf4 {[%clk 0:01:48.7]} 19... Qg5
{[%clk 0:02:44]} 20. Raf1 {[%clk 0:01:36.9]} 20... Raf8 {[%clk 0:02:44.1]} 21.
Rxf5 {[%clk 0:01:31.2]} 21... gxf5 {[%clk 0:02:39.8]} 22. Qxg5 {[%clk
0:01:30.4]} 22... hxg5 {[%clk 0:02:41.7]} 23. Rb1 {[%clk 0:01:25.7]} 23... Rb8
{[%clk 0:02:42.4]} 24. Kf2 {[%clk 0:01:15]} 24... Kf8 {[%clk 0:02:41.5]} 25. a4
{[%clk 0:01:13.3]} 25... Ke7 {[%clk 0:02:42.2]} 26. a5 {[%clk 0:01:11.6]} 26...
Kf6 {[%clk 0:02:42.4]} 27. a6 {[%clk 0:01:07.1]} 27... b6 {[%clk 0:02:41.9]} 28.
h3 {[%clk 0:01:00.3]} 28... Rh8 {[%clk 0:02:40.2]} 29. Re1 {[%clk 0:00:59]}
29... Ke7 {[%clk 0:02:41.2]} 30. Kf3 {[%clk 0:00:57.6]} 30... Rh4 {[%clk
0:02:40.7]} 31. Ke3 {[%clk 0:00:18.7]} 31... Rxc4 {[%clk 0:02:40.8]} 32. Kd3
{[%clk 0:00:17.5]} 32... Ra4 {[%clk 0:02:31.9]} 33. Rf1 {[%clk 0:00:18.3]} 33...
g6 {[%clk 0:02:28.8]} 34. g4 {[%clk 0:00:13.5]} 34... f4 {[%clk 0:02:30]} 35.
Rh1 {[%clk 0:00:11.6]} 35... f3 {[%clk 0:02:09.9]} 36. h4 {[%clk 0:00:07]} 36...
Rf4 {[%clk 0:02:09.2]} 37. hxg5 {[%clk 0:00:05.2]} 37... f2 {[%clk 0:02:10.6]}
38. Ke2 {[%clk 0:00:03.5]} 38... b5 {[%clk 0:02:01.6]} 39. Rh7+ {[%clk
0:00:03.8]} 39... Ke8 {[%clk 0:02:02.3]} 40. Rh8+ {[%clk 0:00:03.1]} 40... Ke7
{[%clk 0:02:02.4]} 41. Rh7+ {[%clk 0:00:04.1]} 41... Kf8 {[%clk 0:02:03.7]} 42.
Kf1 {[%clk 0:00:04.1]} 42... b4 {[%clk 0:01:32.5]} 43. cxb4 {[%clk 0:00:06]}
43... Rxb4 {[%clk 0:01:33.7]} 44. Rxa7 {[%clk 0:00:06.8]} 44... Ra4 {[%clk
0:01:34.9]} 45. Kxf2 {[%clk 0:00:06.9]} 45... c4 {[%clk 0:01:35.3]} 46. Ke3
{[%clk 0:00:05.8]} 46... c3 {[%clk 0:01:36]} 47. Kd3 {[%clk 0:00:06.5]} 47...
Ra5 {[%clk 0:01:37.4]} 48. Kxc3 {[%clk 0:00:07]} 48... Rxd5 {[%clk 0:01:37.5]}
49. Rf7+ {[%clk 0:00:08]} 49... Ke8 {[%clk 0:01:38]} 50. a7 {[%clk 0:00:09.6]}
50... Ra5 {[%clk 0:01:38.9]} 51. Rh7 {[%clk 0:00:09.8]} 51... d5 {[%clk
0:01:40]} 52. a8=Q+ {[%clk 0:00:09.5]} 52... Rxa8 {[%clk 0:01:40.2]} 53. Rh8+
{[%clk 0:00:11.4]} 53... Ke7 {[%clk 0:01:42]} 54. Rxa8 {[%clk 0:00:12.9]} 54...
Kxe6 {[%clk 0:01:43.7]} 55. Kd4 {[%clk 0:00:14.4]} 55... Kd6 {[%clk 0:01:44.5]}
56. Ra6+ {[%clk 0:00:14.7]} 56... Ke7 {[%clk 0:01:45.9]} 57. Rxg6 {[%clk
0:00:16.6]} 57... Kf7 {[%clk 0:01:47.2]} 58. Rf6+ {[%clk 0:00:18.1]} 58... Kg7
{[%clk 0:01:48.1]} 59. Kxd5 {[%clk 0:00:20]} 1-0

[Event "*** Titled Tuesday Blitz"]
[Site "Chess.com"]
[Date "2019.07.02"]
[Round "3"]
[White "Zq1"]
[Black "Aknok"]
[Result "1-0"]
[WhiteElo "2553"]
[BlackElo "2367"]
[TimeControl "180+2"]
[EndTime "13:40:05 PDT"]
[Termination "Zq1 won by resignation"]

1. d4 {[%clk 0:03:01.9]} 1... f5 {[%clk 0:03:00.3]} 2. Nf3 {[%clk 0:03:01.9]}
2... Nf6 {[%clk 0:03:01.4]} 3. Bg5 {[%clk 0:03:02.6]} 3... e6 {[%clk 0:02:59.9]}
4. Nbd2 {[%clk 0:03:02.5]} 4... Be7 {[%clk 0:03:00.5]} 5. Bxf6 {[%clk
0:03:02.7]} 5... Bxf6 {[%clk 0:03:00.1]} 6. e4 {[%clk 0:03:04.3]} 6... d5 {[%clk
0:02:57.8]} 7. exf5 {[%clk 0:03:00.3]} 7... exf5 {[%clk 0:02:57.8]} 8. Bd3
{[%clk 0:03:01.3]} 8... O-O {[%clk 0:02:57.2]} 9. O-O {[%clk 0:03:01.7]} 9... g5
{[%clk 0:02:45.1]} 10. Re1 {[%clk 0:03:00.1]} 10... Nc6 {[%clk 0:02:28.2]} 11.
c3 {[%clk 0:02:59.3]} 11... Qd6 {[%clk 0:02:13.9]} 12. Bb5 {[%clk 0:02:44.4]}
12... g4 {[%clk 0:01:58.8]} 13. Bxc6 {[%clk 0:02:45]} 13... gxf3 {[%clk
0:01:59.4]} 14. Be8 {[%clk 0:02:45.9]} 14... fxg2 {[%clk 0:01:53]} 15. Qf3
{[%clk 0:02:15.3]} 15... Kh8 {[%clk 0:01:43.7]} 16. Re2 {[%clk 0:01:52.6]} 16...
Be6 {[%clk 0:01:23.5]} 17. Bh5 {[%clk 0:01:51.6]} 17... Rad8 {[%clk 0:01:01.7]}
18. Rae1 {[%clk 0:01:50.8]} 18... Bd7 {[%clk 0:01:01.1]} 19. Qh3 {[%clk
0:01:37.6]} 19... Rg8 {[%clk 0:00:50.4]} 20. Bf7 {[%clk 0:01:30.1]} 20... Rg4
{[%clk 0:00:35.2]} 21. Be6 {[%clk 0:00:55]} 21... Bxe6 {[%clk 0:00:18.3]} 22.
Rxe6 {[%clk 0:00:55]} 22... Qf8 {[%clk 0:00:10.9]} 23. Qh5 {[%clk 0:00:48.7]}
23... Bg5 {[%clk 0:00:04.2]} 24. Re8 {[%clk 0:00:44.7]} 24... Bxd2 {[%clk
0:00:02.3]} 25. Rxf8+ {[%clk 0:00:44.1]} 25... Rxf8 {[%clk 0:00:04.2]} 26. Re7
{[%clk 0:00:28.6]} 26... Rg7 {[%clk 0:00:02.3]} 27. Rxg7 {[%clk 0:00:29.1]}
27... Kxg7 {[%clk 0:00:04.2]} 28. Kxg2 {[%clk 0:00:30]} 28... Bf4 {[%clk
0:00:03.9]} 29. Qf3 {[%clk 0:00:27.6]} 29... Bd6 {[%clk 0:00:03.3]} 30. Qxd5
{[%clk 0:00:28.6]} 30... Rf6 {[%clk 0:00:04]} 31. Qxb7 {[%clk 0:00:28.5]} 31...
Rg6+ {[%clk 0:00:05.4]} 32. Kf3 {[%clk 0:00:29.7]} 32... Rh6 {[%clk 0:00:06.3]}
33. Qxa7 {[%clk 0:00:30.3]} 33... Rxh2 {[%clk 0:00:06.7]} 34. Qb7 {[%clk
0:00:30.5]} 34... h5 {[%clk 0:00:07.2]} 35. a4 {[%clk 0:00:30]} 35... h4 {[%clk
0:00:07]} 36. Qc8 {[%clk 0:00:28.8]} 36... Rh3+ {[%clk 0:00:07.3]} 37. Ke2
{[%clk 0:00:28.5]} 37... Kf6 {[%clk 0:00:07.5]} 38. a5 {[%clk 0:00:27.9]} 38...
Rh1 {[%clk 0:00:07.7]} 39. a6 {[%clk 0:00:28.6]} 39... Ra1 {[%clk 0:00:08.4]}
40. Qb7 {[%clk 0:00:22.7]} 40... h3 {[%clk 0:00:09]} 41. a7 {[%clk 0:00:23.4]}
1-0

[Event "*** Titled Tuesday Blitz"]
[Site "Chess.com"]
[Date "2019.07.02"]
[Round "3"]
[White "Witik"]
[Black "KhazarBabazada"]
[Result "0-1"]
[WhiteElo "2542"]
[BlackElo "2663"]
[TimeControl "180+2"]
[EndTime "13:40:07 PDT"]
[Termination "KhazarBabazada won by resignation"]

1. d4 {[%clk 0:03:01.9]} 1... Nf6 {[%clk 0:03:00.9]} 2. c4 {[%clk 0:03:00.6]}
2... g6 {[%clk 0:03:02.4]} 3. Nc3 {[%clk 0:03:01.1]} 3... Bg7 {[%clk 0:03:04.3]}
4. e4 {[%clk 0:03:01.6]} 4... d6 {[%clk 0:03:06.2]} 5. f3 {[%clk 0:03:02.5]}
5... O-O {[%clk 0:03:07.5]} 6. Be3 {[%clk 0:03:04]} 6... Nc6 {[%clk 0:03:07.5]}
7. Nge2 {[%clk 0:03:02.7]} 7... a6 {[%clk 0:03:08.3]} 8. d5 {[%clk 0:02:48.6]}
8... Na5 {[%clk 0:03:07.1]} 9. Ng3 {[%clk 0:02:27.9]} 9... c5 {[%clk 0:03:07.3]}
10. Qd2 {[%clk 0:02:13.2]} 10... Rb8 {[%clk 0:03:01.7]} 11. Bh6 {[%clk
0:02:05.8]} 11... b5 {[%clk 0:03:02.5]} 12. h4 {[%clk 0:01:55.3]} 12... bxc4
{[%clk 0:02:56]} 13. h5 {[%clk 0:01:50.4]} 13... Bxh6 {[%clk 0:02:50.2]} 14.
Qxh6 {[%clk 0:01:49.8]} 14... Rxb2 {[%clk 0:02:51.7]} 15. e5 {[%clk 0:01:32.2]}
15... dxe5 {[%clk 0:02:11.1]} 16. Nce4 {[%clk 0:01:15]} 16... Nc6 {[%clk
0:01:37.6]} 17. Nxf6+ {[%clk 0:00:52.1]} 17... exf6 {[%clk 0:01:35.1]} 18. hxg6
{[%clk 0:00:54]} 18... Qa5+ {[%clk 0:01:30]} 19. Kd1 {[%clk 0:00:50.5]} 19...
Qa4+ {[%clk 0:01:29.5]} 20. Ke1 {[%clk 0:00:49.3]} 20... Qb4+ {[%clk 0:01:30.8]}
21. Kd1 {[%clk 0:00:49.5]} 21... Rb1+ {[%clk 0:01:31.9]} 22. Rxb1 {[%clk
0:00:42.6]} 22... Qxb1+ {[%clk 0:01:33.8]} 23. Qc1 {[%clk 0:00:34]} 23... Qxg6
{[%clk 0:01:19.8]} 24. Ne4 {[%clk 0:00:29.2]} 24... Bg4 {[%clk 0:00:37]} 25.
Qxc4 {[%clk 0:00:17.7]} 25... Nd4 {[%clk 0:00:31.7]} 26. Kd2 {[%clk 0:00:09.6]}
26... Rb8 {[%clk 0:00:29.4]} 27. Bd3 {[%clk 0:00:02.8]} 27... Bf5 {[%clk
0:00:26.8]} 28. g4 {[%clk 0:00:03.7]} 28... Bxe4 {[%clk 0:00:27.4]} 29. Bxe4
{[%clk 0:00:04.9]} 29... Qg5+ {[%clk 0:00:28]} 30. Kd3 {[%clk 0:00:05.7]} 30...
Rb2 {[%clk 0:00:26.9]} 31. Qc3 {[%clk 0:00:05.8]} 31... Rf2 {[%clk 0:00:23.3]}
32. Bxh7+ {[%clk 0:00:06.9]} 32... Kg7 {[%clk 0:00:22.7]} 33. Be4 {[%clk
0:00:08.8]} 33... f5 {[%clk 0:00:19.9]} 34. gxf5 {[%clk 0:00:08.8]} 34... Nxf3
{[%clk 0:00:12.3]} 35. Kc4 {[%clk 0:00:07.9]} 35... Nd2+ {[%clk 0:00:12.6]} 36.
Kd3 {[%clk 0:00:07.4]} 36... Qg3+ {[%clk 0:00:13.4]} 37. Kc2 {[%clk 0:00:08.5]}
37... Nxe4+ {[%clk 0:00:14.3]} 0-1

[Event "*** Titled Tuesday Blitz"]
[Site "Chess.com"]
[Date "2019.07.02"]
[Round "3"]
[White "Rish_97"]
[Black "BillieKimbah"]
[Result "1-0"]
[WhiteElo "2508"]
[BlackElo "2735"]
[TimeControl "180+2"]
[EndTime "13:40:08 PDT"]
[Termination "Rish_97 won by resignation"]

1. e4 {[%clk 0:03:01.9]} 1... c5 {[%clk 0:03:00.7]} 2. Nf3 {[%clk 0:03:02.3]}
2... d6 {[%clk 0:03:02.2]} 3. d4 {[%clk 0:03:03.5]} 3... cxd4 {[%clk 0:03:04.1]}
4. Nxd4 {[%clk 0:03:05.2]} 4... Nf6 {[%clk 0:03:05.2]} 5. Nc3 {[%clk 0:03:06.8]}
5... a6 {[%clk 0:03:06.8]} 6. h3 {[%clk 0:03:07.2]} 6... e6 {[%clk 0:03:06.9]}
7. g4 {[%clk 0:03:07.4]} 7... Nfd7 {[%clk 0:03:07.5]} 8. g5 {[%clk 0:03:06.4]}
8... Be7 {[%clk 0:03:07.7]} 9. h4 {[%clk 0:03:07.7]} 9... b5 {[%clk 0:03:08]}
10. a3 {[%clk 0:03:03.7]} 10... Bb7 {[%clk 0:03:08.7]} 11. h5 {[%clk 0:03:03.2]}
11... Bxg5 {[%clk 0:03:03.4]} 12. Rg1 {[%clk 0:02:16.4]} 12... Bxc1 {[%clk
0:02:59.2]} 13. Qxc1 {[%clk 0:02:16.7]} 13... Qf6 {[%clk 0:02:59.3]} 14. Qe3
{[%clk 0:02:17]} 14... Qh6 {[%clk 0:02:13.6]} 15. Qg3 {[%clk 0:01:32.2]} 15...
Nc6 {[%clk 0:02:06.2]} 16. Nxc6 {[%clk 0:01:30.5]} 16... Bxc6 {[%clk 0:02:07.8]}
17. Qxd6 {[%clk 0:01:30.9]} 17... Rc8 {[%clk 0:02:08.4]} 18. a4 {[%clk
0:01:28.8]} 18... Qxh5 {[%clk 0:01:55.3]} 19. axb5 {[%clk 0:01:26.3]} 19... axb5
{[%clk 0:01:55.9]} 20. Ra6 {[%clk 0:00:51.4]} 20... Ne5 {[%clk 0:01:17.7]} 21.
Be2 {[%clk 0:00:21.2]} 21... Qh2 {[%clk 0:01:07]} 22. Rg3 {[%clk 0:00:22.2]}
22... Qh1+ {[%clk 0:01:01.5]} 23. Bf1 {[%clk 0:00:23.5]} 23... b4 {[%clk
0:00:51.9]} 24. Qxe5 {[%clk 0:00:22.6]} 24... bxc3 {[%clk 0:00:52.6]} 25. Rxc3
{[%clk 0:00:24.2]} 25... Bd7 {[%clk 0:00:17.9]} 26. Rxc8+ {[%clk 0:00:22.5]}
26... Bxc8 {[%clk 0:00:19.8]} 27. Qb5+ {[%clk 0:00:20.3]} 27... Ke7 {[%clk
0:00:19.7]} 28. Qc5+ {[%clk 0:00:21.5]} 28... Kf6 {[%clk 0:00:20.2]} 29. Qd4+
{[%clk 0:00:22.7]} 29... Kg6 {[%clk 0:00:21]} 30. Ra3 {[%clk 0:00:23.3]} 30...
f6 {[%clk 0:00:08.1]} 31. Rg3+ {[%clk 0:00:24.1]} 31... Kf7 {[%clk 0:00:09.5]}
32. Qa7+ {[%clk 0:00:24.4]} 32... Ke8 {[%clk 0:00:10.9]} 33. Qxg7 {[%clk
0:00:21.3]} 33... Qxe4+ {[%clk 0:00:11]} 34. Re3 {[%clk 0:00:22.8]} 34... Qb4+
{[%clk 0:00:12.1]} 35. c3 {[%clk 0:00:23.6]} 35... Qf8 {[%clk 0:00:12.7]} 36.
Bb5+ {[%clk 0:00:25]} 36... Kd8 {[%clk 0:00:12.2]} 37. Rd3+ {[%clk 0:00:26.3]}
1-0